Workbook

Sheet Introduction
B3: The Operational Energy and Carbon (OpEC)© Calculation Tool V10.2021
B6: Welcome to the OpEC calculation Tool. Ths spreadsheet is designed to be used in conjunction with the Energy and Carbon Reporting Framework published by the Centre for Digital Built Britain (CDBB). Note that this is a beta version and will be modified as feedback is obtained from users. The tool is free for use by construction professionals wishing to assess and track energy loads and carbon emissions throughout project procurement and delivery. It is consistent with published conventions for assessing energy such as CIBSE TM54:2013 Evaluating the Operational Energy Performance of Buildings at the Design Stage and the post-occupancy energy analysis tool CIBSE TM22:2006 Energy Assessment and Reporting Methodology. The OpEC tool is most appropriate for use on Soft Landings and Government Soft Landings (GSL) projects where operational energy and emissions are required to be tracked during project delivery and into early occupation. The spreadsheet calculates operational energy consumption for all regulated and unregulated electrical loads. Outputs are presented in tables and charts. Programmed macros enable the user to save changes and iterations as actual loads and their diversities become known during design development and product procurement, and as end-user needs become known. Thermal loads, calculated in other tools such as dynamic simulation models, can be imported and updated as required. Users are advised to save a blank version of this spreadsheet prior to use. Note that this spreadsheet contains data entries as a reference example. Users should use the 'Erase All Content for Blank Sheet' button on the 'Energy Input Sheet' tab to create a clean version. Instructions are included on a 'Notes on use' tab in this spreadsheet. The supporting OpEC guidance (opposite) contains additional instructions. Note that the beta OpEC spreadsheet tool is the copyrighted work of its authors and developers, John Field and Roderic Bunn. It is made available for use at users' own risk via www.cdbb.cam.ac.uk/BIM/government-soft-landings. Although free to use, the beta spreadsheet and its programming is protected to prevent corporate exploitation. Technical support is not formally available and the spreadsheet is neither warranted nor guaranteed. The website will host updates as and when they become available.
G36: Example building details
B37: START

Sheet Energy input sheet
L2: Benchmark/Targets
L3: kWh/m2 p.a. | M3: kgCO2 p.a. | T3: Toggle buttons
B4: Notional primary school exemplar | D4: Annual billed (metered) electricity (if known) | F4: kWh | G4: 1000 | H4: m2 TFA | I4: Energy use kWh/m2 p.a. | J4: =IF(G4>0,ResultsEnergy/G4,"(no TFA)") -> 31.5221568 | L4: 50 | M4: =L4*M6 -> 9.5 | T4: Fully reversible
C6: Unit cost "in use" (p/kWh) | D6: 12 | G6: Hours "in use"/day | H6: 12 | L6: Emission factor "in use" (kgCO2/kWh) | M6: 0.19
C7: Unit cost "out of hours" (p/kWh) | D7: 12 | G7: Days per week | H7: 5.8 | L7: Emission factor "out of hours" (kgCO2/kWh) | M7: 0.19
G8: Weeks per year | H8: 40
B9: Blue box for printing | J9: Do not adjust grey boxes | Q9: Not for printing >>>>>>>
C10: Energy Loads Table | H10: Usage data | J10: Results | Q10: Usage time | V10: Secondary results - Power Demand
B11: Row item | C11: Load type | D11: End-use item (Select from drop-down menu) Drop down | E11: Number present (or m2 area) | F11: Units or floor area | G11: Full load Watts (or W/m2) | H11: Load factor "in use" | I11: Load factor "out of hours" | J11: Annual energy use (kWh p.a.) | K11: Annual cost of energy (£ p.a.) | L11: % of total cost | M11: Emissions (kgCO2) | Q11: Hours "in use" per day | R11: Days per week | S11: Weeks per year in-use | T11: Factor for full load | V11: Total watts at full load (W) | W11: Full load hours per year (hrs) | X11: In-use summer average power demand (W) | Y11: In-use winter average power demand (W) | Z11: Out of hours summer average power demand (W) | AA11: Out of hours winter average power demand (W)
F12: Drop down
B13: 1 | C13: Classroom main lighting | D13: Lighting (internal) | E13: 420 | F13: m2 | G13: 8.1 | H13: 0.65 | I13: 0 | J13: =V13*W13*0.001 -> 6156.2592 | K13: =0.00001*S13*V13*($D$6*(Q13*R13*H13)+$D$7*((168-Q13*R13)*I13)) -> 738.751104 | L13: =IF($K$73>0,K13/$K$73,0) -> 0.1952994282 | M13: =0.001*S13*V13*($M$6*(Q13*R13*H13)+$M$7*((168-Q13*R13)*I13)) -> 1169.689248 | Q13: =$H$6 -> 12 | R13: =$H$7 -> 5.8 | S13: =$H$8 -> 40 | T13: 1 | V13: =G13*E13*T13 -> 3402 | W13: =Q13*R13*S13*H13+(168-Q13*R13)*S13*I13 -> 1809.6 | X13: =$G13*$E13*$T13*H13 -> 2211.3 | Y13: =$G13*$E13*$T13*H13 -> 2211.3 | Z13: =$G13*$E13*$T13*I13 -> 0 | AA13: =$G13*$E13*$T13*I13 -> 0
B14: 2 | C14: Classroom extra lighting | D14: Lighting (internal) | E14: 30 | F14: Units | G14: 26 | H14: 0.65 | I14: 0 | J14: =V14*W14*0.001 -> 1411.488 | K14: 169.37856 | L14: 0.04477764669 | M14: 268.18272 | Q14: 12 | R14: =$H$7 -> 5.8 | S14: =$H$8 -> 40 | T14: 1 | V14: 780 | W14: 1809.6 | X14: 507 | Y14: 507 | Z14: 0 | AA14: 0
B15: 3 | C15: Corridor & circulation lighting | D15: Lighting (internal) | E15: 300 | F15: m2 | G15: 9.8 | H15: 0.65 | I15: 0.1 | J15: =V15*W15*0.001 -> 6477.408 | K15: 777.28896 | L15: 0.2054874621 | M15: 1230.70752 | Q15: 12 | R15: =$H$7 -> 5.8 | S15: 40 | T15: 1 | V15: =G15*E15*T15 -> 2940 | W15: =Q15*R15*S15*H15+(168-Q15*R15)*S15*I15 -> 2203.2 | X15: =$G15*$E15*$T15*H15 -> 1911 | Y15: =$G15*$E15*$T15*H15 -> 1911 | Z15: =$G15*$E15*$T15*I15 -> 294 | AA15: =$G15*$E15*$T15*I15 -> 294
B16: 4 | C16: Hall lighting | D16: Lighting (internal) | E16: 40 | F16: Units | G16: 26 | H16: 0.6 | I16: 0.2 | J16: 2555.904 | K16: 306.70848 | L16: 0.08108277667 | M16: 485.62176 | Q16: 12 | R16: 5.8 | S16: 40 | T16: 1 | V16: 1040 | W16: 2457.6 | X16: 624 | Y16: 624 | Z16: 208 | AA16: 208
B17: 5 | C17: Staff, reception, offices lighting | D17: Lighting (internal) | E17: 130 | F17: m2 | G17: 11.4 | H17: 0.8 | I17: 0.1 | J17: 3884.0256 | K17: 466.083072 | L17: 0.1232157312 | M17: 737.964864 | Q17: 12 | R17: 5.8 | S17: 40 | T17: 1 | V17: 1482 | W17: 2620.8 | X17: 1185.6 | Y17: 1185.6 | Z17: 148.2 | AA17: 148.2
B18: 6 | J18: 0 | K18: 0 | L18: 0 | M18: 0 | Q18: 12 | R18: 5.8 | S18: 40 | T18: 1 | V18: 0 | W18: 0 | X18: 0 | Y18: 0 | Z18: 0 | AA18: 0
B19: 7 | C19: Playground lighting | D19: Lighting (external) | E19: 3 | F19: Units | G19: 150 | H19: 0 | I19: 0.22 | J19: 389.664 | K19: 46.75968 | L19: 0.01236159069 | M19: 74.03616 | Q19: 12 | R19: 5.8 | S19: 40 | T19: 1 | V19: 450 | W19: 865.92 | X19: 0 | Y19: 0 | Z19: 99 | AA19: 99
B20: 8 | J20: 0 | K20: 0 | L20: 0 | M20: 0 | Q20: 12 | R20: 5.8 | S20: 40 | T20: 1 | V20: 0 | W20: 0 | X20: 0 | Y20: 0 | Z20: 0 | AA20: 0
B21: 9 | C21: Classroom displays | D21: ICT | E21: 6 | F21: Units | G21: 150 | H21: 0.7 | I21: 0.2 | J21: =V21*W21*0.001 -> 2462.4 | K21: 295.488 | L21: 0.07811648218 | M21: 467.856 | Q21: 12 | R21: 5.8 | S21: 40 | T21: 1 | V21: =G21*E21*T21 -> 900 | W21: =Q21*R21*S21*H21+(168-Q21*R21)*S21*I21 -> 2736 | X21: =$G21*$E21*$T21*H21 -> 630 | Y21: =$G21*$E21*$T21*H21 -> 630 | Z21: =$G21*$E21*$T21*I21 -> 180 | AA21: =$G21*$E21*$T21*I21 -> 180
B22: 10 | C22: Office PCs and printers | D22: ICT | E22: 3 | F22: Units | G22: 100 | H22: 0.6 | I22: 0.2 | J22: =V22*W22*0.001 -> 737.28 | K22: 88.4736 | L22: 0.0233892625 | M22: 140.0832 | Q22: 12 | R22: 5.8 | S22: 40 | T22: 1 | V22: =G22*E22*T22 -> 300 | W22: =Q22*R22*S22*H22+(168-Q22*R22)*S22*I22 -> 2457.6 | X22: =$G22*$E22*$T22*H22 -> 180 | Y22: =$G22*$E22*$T22*H22 -> 180 | Z22: =$G22*$E22*$T22*I22 -> 60 | AA22: =$G22*$E22*$T22*I22 -> 60
B23: 11 | C23: Network hub cabinet | D23: ICT | E23: 1 | F23: Units | G23: 250 | H23: 1 | I23: 1 | J23: 1680 | K23: 201.6 | L23: 0.05329584554 | M23: 319.2 | Q23: 12 | R23: 5.8 | S23: 40 | T23: 1 | V23: 250 | W23: 6720 | X23: 250 | Y23: 250 | Z23: 250 | AA23: 250
B24: 13 | J24: =V24*W24*0.001 -> 0 | K24: 0 | L24: 0 | M24: 0 | Q24: 12 | R24: 5.8 | S24: 40 | T24: 1 | V24: =G24*E24*T24 -> 0 | W24: =Q24*R24*S24*H24+(168-Q24*R24)*S24*I24 -> 0 | X24: =$G24*$E24*$T24*H24 -> 0 | Y24: =$G24*$E24*$T24*H24 -> 0 | Z24: =$G24*$E24*$T24*I24 -> 0 | AA24: =$G24*$E24*$T24*I24 -> 0
B25: 14 | C25: Boiler pump | D25: Pumps | E25: 1 | F25: Units | G25: 60 | H25: 0.45 | I25: 0 | J25: 75.168 | K25: 9.02016 | L25: 0.002384608403 | M25: 14.28192 | Q25: 12 | R25: 5.8 | S25: 40 | T25: 1 | V25: 60 | W25: 1252.8 | X25: 27 | Y25: 27 | Z25: 0 | AA25: 0
B26: 15 | C26: Heating circulation pump | D26: Pumps | E26: 1 | F26: Units | G26: 200 | H26: 0.45 | I26: 0 | J26: =V26*W26*0.001 -> 250.56 | K26: 30.0672 | L26: 0.007948694678 | M26: 47.6064 | Q26: 12 | R26: 5.8 | S26: 40 | T26: 1 | V26: =G26*E26*T26 -> 200 | W26: =Q26*R26*S26*H26+(168-Q26*R26)*S26*I26 -> 1252.8 | X26: 90 | Y26: =$G26*$E26*$T26*H26 -> 90 | Z26: =$G26*$E26*$T26*I26 -> 0 | AA26: =$G26*$E26*$T26*I26 -> 0
B27: =ROW()-ROW($B$11) -> 16 | J27: =V27*W27*0.001 -> 0 | K27: 0 | L27: 0 | M27: 0 | Q27: 12 | R27: 5.8 | S27: 40 | T27: 1 | V27: =G27*E27*T27 -> 0 | W27: =Q27*R27*S27*H27+(168-Q27*R27)*S27*I27 -> 0 | X27: =$G27*$E27*$T27*H27 -> 0 | Y27: =$G27*$E27*$T27*H27 -> 0 | Z27: =$G27*$E27*$T27*I27 -> 0 | AA27: =$G27*$E27*$T27*I27 -> 0
B28: 17 | C28: Hot water direct electric heater | D28: Hot water | E28: 1 | F28: Units | G28: 6000 | H28: 0.12 | I28: 0 | J28: 2004.48 | K28: 240.5376 | L28: 0.06358955743 | M28: 380.8512 | Q28: 12 | R28: 5.8 | S28: 40 | T28: 1 | V28: 6000 | W28: 334.08 | X28: 720 | Y28: 720 | Z28: 0 | AA28: 0
B29: 18 | J29: 0 | K29: 0 | L29: 0 | M29: 0 | Q29: 12 | R29: 5.8 | S29: 40 | T29: 1 | V29: 0 | W29: 0 | X29: 0 | Y29: 0 | Z29: 0 | AA29: 0
B30: 19 | C30: Fridges | D30: Catering single site | E30: 2 | F30: Units | G30: 120 | H30: 0.35 | I30: 0.25 | J30: =V30*W30*0.001 -> 470.016 | K30: 56.40192 | L30: 0.01491065484 | M30: 89.30304 | Q30: 12 | R30: 5.8 | S30: 40 | T30: 1 | V30: =G30*E30*T30 -> 240 | W30: =Q30*R30*S30*H30+(168-Q30*R30)*S30*I30 -> 1958.4 | X30: =$G30*$E30*$T30*H30 -> 84 | Y30: =$G30*$E30*$T30*H30 -> 84 | Z30: 60 | AA30: =$G30*$E30*$T30*I30 -> 60
B31: 20 | C31: Freezers | D31: Catering single site | E31: 1 | F31: Units | G31: 150 | H31: 0.25 | I31: 0.2 | J31: =V31*W31*0.001 -> 222.48 | K31: 26.6976 | L31: 0.007057892688 | M31: 42.2712 | Q31: 12 | R31: 5.8 | S31: 40 | T31: 1 | V31: =G31*E31*T31 -> 150 | W31: =Q31*R31*S31*H31+(168-Q31*R31)*S31*I31 -> 1483.2 | X31: =$G31*$E31*$T31*H31 -> 37.5 | Y31: 37.5 | Z31: 30 | AA31: =$G31*$E31*$T31*I31 -> 30
B32: 21 | C32: Cooker hood fan | D32: Catering single site | E32: 1 | F32: Units | G32: 80 | H32: 0.2 | I32: 0 | J32: 44.544 | K32: 5.34528 | L32: 0.001413101276 | M32: 8.46336 | Q32: 12 | R32: 5.8 | S32: 40 | T32: 1 | V32: 80 | W32: 556.8 | X32: 16 | Y32: 16 | Z32: 0 | AA32: 0
B33: 22 | C33: Kitchen ventilation | D33: Fans | E33: 1 | F33: Units | G33: 200 | H33: 0.6 | I33: 0 | J33: 334.08 | K33: 40.0896 | L33: 0.01059825957 | M33: 63.4752 | Q33: 12 | R33: 5.8 | S33: 40 | T33: 1 | V33: 200 | W33: 1670.4 | X33: 120 | Y33: 120 | Z33: 0 | AA33: 0
B34: 23 | C34: Dishwasher | D34: Catering single site | E34: 1 | F34: Units | G34: 3000 | H34: 0.15 | I34: 0 | J34: 1252.8 | K34: 150.336 | L34: 0.03974347339 | M34: 238.032 | Q34: 12 | R34: 5.8 | S34: 40 | T34: 1 | V34: 3000 | W34: 417.6 | X34: 450 | Y34: 450 | Z34: 0 | AA34: 0
B35: 24 | C35: Servery | D35: Catering single site | E35: 1 | F35: Units | G35: 2000 | H35: 0.2 | I35: 0 | J35: 1113.6 | K35: 133.632 | L35: 0.0353275319 | M35: 211.584 | Q35: 12 | R35: =$H$7 -> 5.8 | S35: 40 | T35: 1 | V35: 2000 | W35: 556.8 | X35: 400 | Y35: 400 | Z35: 0 | AA35: 0
B36: 25 | J36: 0 | K36: 0 | L36: 0 | M36: 0 | Q36: 12 | R36: 5.8 | S36: 40 | T36: 1 | V36: 0 | W36: 0 | X36: 0 | Y36: 0 | Z36: 0 | AA36: 0
B37: 26 | E37: 0 | G37: 0 | H37: 0 | I37: 0 | J37: 0 | K37: 0 | L37: 0 | M37: 0 | Q37: 12 | R37: 5.8 | S37: 40 | T37: 1 | V37: 0 | W37: 0 | X37: 0 | Y37: 0 | Z37: 0 | AA37: 0
B38: 27 | E38: 0 | G38: 0 | H38: 0 | I38: 0 | J38: =V38*W38*0.001 -> 0 | K38: 0 | L38: 0 | M38: 0 | Q38: 12 | R38: 5.8 | S38: 40 | T38: 1 | V38: =G38*E38*T38 -> 0 | W38: =Q38*R38*S38*H38+(168-Q38*R38)*S38*I38 -> 0 | X38: =$G38*$E38*$T38*H38 -> 0 | Y38: =$G38*$E38*$T38*H38 -> 0 | Z38: 0 | AA38: =$G38*$E38*$T38*I38 -> 0
B39: 28 | E39: 0 | G39: 0 | H39: 0 | I39: 0 | J39: =V39*W39*0.001 -> 0 | K39: 0 | L39: 0 | M39: 0 | Q39: 12 | R39: 5.8 | S39: 40 | T39: 1 | V39: =G39*E39*T39 -> 0 | W39: =Q39*R39*S39*H39+(168-Q39*R39)*S39*I39 -> 0 | X39: =$G39*$E39*$T39*H39 -> 0 | Y39: 0 | Z39: 0 | AA39: =$G39*$E39*$T39*I39 -> 0
B40: 29 | E40: 0 | G40: 0 | H40: 0 | I40: 0 | J40: =V40*W40*0.001 -> 0 | K40: 0 | L40: 0 | M40: 0 | Q40: 12 | R40: 5.8 | S40: 40 | T40: 1 | V40: =G40*E40*T40 -> 0 | W40: =Q40*R40*S40*H40+(168-Q40*R40)*S40*I40 -> 0 | X40: =$G40*$E40*$T40*H40 -> 0 | Y40: 0 | Z40: 0 | AA40: =$G40*$E40*$T40*I40 -> 0
B41: 30 | E41: 0 | G41: 0 | H41: 0 | I41: 0 | J41: =V41*W41*0.001 -> 0 | K41: 0 | L41: 0 | M41: 0 | Q41: 12 | R41: 5.8 | S41: 40 | T41: 1 | V41: =G41*E41*T41 -> 0 | W41: =Q41*R41*S41*H41+(168-Q41*R41)*S41*I41 -> 0 | X41: 0 | Y41: 0 | Z41: 0 | AA41: 0
B42: 31 | E42: 0 | G42: 0 | H42: 0 | I42: 0 | J42: 0 | K42: 0 | L42: 0 | M42: 0 | Q42: 12 | R42: 5.8 | S42: 40 | T42: 1 | V42: 0 | W42: 0 | X42: 0 | Y42: 0 | Z42: 0 | AA42: 0
B43: 32 | E43: 0 | G43: 0 | H43: 0 | I43: 0 | J43: 0 | K43: 0 | L43: 0 | M43: 0 | Q43: 12 | R43: 5.8 | S43: 40 | T43: 1 | V43: 0 | W43: 0 | X43: 0 | Y43: 0 | Z43: 0 | AA43: 0
B44: 33 | E44: 0 | G44: 0 | H44: 0 | I44: 0 | J44: =V44*W44*0.001 -> 0 | K44: 0 | L44: 0 | M44: 0 | Q44: 12 | R44: 5.8 | S44: 40 | T44: 1 | V44: =G44*E44*T44 -> 0 | W44: =Q44*R44*S44*H44+(168-Q44*R44)*S44*I44 -> 0 | X44: =$G44*$E44*$T44*H44 -> 0 | Y44: =$G44*$E44*$T44*H44 -> 0 | Z44: =$G44*$E44*$T44*I44 -> 0 | AA44: =$G44*$E44*$T44*I44 -> 0
B45: 34 | E45: 0 | G45: 0 | H45: 0 | I45: 0 | J45: 0 | K45: =0.00001*S45*V45*($D$6*(Q45*R45*H45)+$D$7*((168-Q45*R45)*I45)) -> 0 | L45: =IF($K$73>0,K45/$K$73,0) -> 0 | M45: =0.001*S45*V45*($M$6*(Q45*R45*H45)+$M$7*((168-Q45*R45)*I45)) -> 0 | Q45: =$H$6 -> 12 | R45: 5.8 | S45: 40 | T45: 1 | V45: 0 | W45: 0 | X45: 0 | Y45: 0 | Z45: 0 | AA45: 0
B46: 35 | E46: 0 | G46: 0 | H46: 0 | I46: 0 | J46: =V46*W46*0.001 -> 0 | K46: 0 | L46: 0 | M46: 0 | Q46: 12 | R46: 5.8 | S46: 40 | T46: 1 | V46: =G46*E46*T46 -> 0 | W46: =Q46*R46*S46*H46+(168-Q46*R46)*S46*I46 -> 0 | X46: =$G46*$E46*$T46*H46 -> 0 | Y46: =$G46*$E46*$T46*H46 -> 0 | Z46: =$G46*$E46*$T46*I46 -> 0 | AA46: =$G46*$E46*$T46*I46 -> 0
B47: 36 | E47: 0 | G47: 0 | H47: 0 | I47: 0 | J47: 0 | K47: 0 | L47: 0 | M47: 0 | Q47: 12 | R47: 5.8 | S47: 40 | T47: 1 | V47: 0 | W47: 0 | X47: 0 | Y47: 0 | Z47: 0 | AA47: 0
B48: 37 | E48: 0 | G48: 0 | H48: 0 | I48: 0 | J48: =V48*W48*0.001 -> 0 | K48: 0 | L48: 0 | M48: 0 | Q48: 12 | R48: 5.8 | S48: 40 | T48: 1 | V48: =G48*E48*T48 -> 0 | W48: =Q48*R48*S48*H48+(168-Q48*R48)*S48*I48 -> 0 | X48: =$G48*$E48*$T48*H48 -> 0 | Y48: =$G48*$E48*$T48*H48 -> 0 | Z48: =$G48*$E48*$T48*I48 -> 0 | AA48: =$G48*$E48*$T48*I48 -> 0
B49: 38 | E49: 0 | G49: 0 | H49: 0 | I49: 0 | J49: 0 | K49: 0 | L49: 0 | M49: 0 | Q49: 12 | R49: 5.8 | S49: 40 | T49: 1 | V49: 0 | W49: 0 | X49: 0 | Y49: 0 | Z49: 0 | AA49: 0
B50: 39 | E50: 0 | G50: 0 | H50: 0 | I50: 0 | J50: =V50*W50*0.001 -> 0 | K50: 0 | L50: 0 | M50: 0 | Q50: 12 | R50: 5.8 | S50: 40 | T50: 1 | V50: =G50*E50*T50 -> 0 | W50: =Q50*R50*S50*H50+(168-Q50*R50)*S50*I50 -> 0 | X50: =$G50*$E50*$T50*H50 -> 0 | Y50: =$G50*$E50*$T50*H50 -> 0 | Z50: =$G50*$E50*$T50*I50 -> 0 | AA50: =$G50*$E50*$T50*I50 -> 0
B51: 40 | E51: 0 | G51: 0 | H51: 0 | I51: 0 | J51: 0 | K51: 0 | L51: 0 | M51: 0 | Q51: 12 | R51: 5.8 | S51: 40 | T51: 1 | V51: 0 | W51: 0 | X51: 0 | Y51: 0 | Z51: 0 | AA51: 0
B52: 41 | E52: 0 | G52: 0 | H52: 0 | I52: 0 | J52: =V52*W52*0.001 -> 0 | K52: 0 | L52: 0 | M52: 0 | Q52: 12 | R52: 5.8 | S52: 40 | T52: 1 | V52: =G52*E52*T52 -> 0 | W52: =Q52*R52*S52*H52+(168-Q52*R52)*S52*I52 -> 0 | X52: =$G52*$E52*$T52*H52 -> 0 | Y52: =$G52*$E52*$T52*H52 -> 0 | Z52: 0 | AA52: =$G52*$E52*$T52*I52 -> 0
B53: 42 | E53: 0 | G53: 0 | H53: 0 | I53: 0 | J53: 0 | K53: 0 | L53: 0 | M53: 0 | Q53: 12 | R53: 5.8 | S53: 40 | T53: 1 | V53: 0 | W53: 0 | X53: 0 | Y53: 0 | Z53: 0 | AA53: 0
B54: 43 | E54: 0 | G54: 0 | H54: 0 | I54: 0 | J54: 0 | K54: 0 | L54: 0 | M54: 0 | Q54: 12 | R54: 5.8 | S54: 40 | T54: 1 | V54: 0 | W54: 0 | X54: 0 | Y54: 0 | Z54: 0 | AA54: 0
B55: 44 | E55: 0 | G55: 0 | H55: 0 | I55: 0 | J55: 0 | K55: 0 | L55: 0 | M55: 0 | Q55: 12 | R55: 5.8 | S55: 40 | T55: 1 | V55: 0 | W55: 0 | X55: 0 | Y55: 0 | Z55: 0 | AA55: 0
B56: 45 | E56: 0 | G56: 0 | H56: 0 | I56: 0 | J56: 0 | K56: 0 | L56: 0 | M56: 0 | Q56: 12 | R56: 5.8 | S56: 40 | T56: 1 | V56: 0 | W56: 0 | X56: 0 | Y56: 0 | Z56: 0 | AA56: 0
B57: 46 | E57: 0 | G57: 0 | H57: 0 | I57: 0 | J57: 0 | K57: 0 | L57: 0 | M57: 0 | Q57: 12 | R57: 5.8 | S57: 40 | T57: 1 | V57: 0 | W57: 0 | X57: 0 | Y57: 0 | Z57: 0 | AA57: 0
B58: 47 | E58: 0 | G58: 0 | H58: 0 | I58: 0 | J58: =V58*W58*0.001 -> 0 | K58: 0 | L58: 0 | M58: 0 | Q58: 12 | R58: 5.8 | S58: 40 | T58: 1 | V58: =G58*E58*T58 -> 0 | W58: =Q58*R58*S58*H58+(168-Q58*R58)*S58*I58 -> 0 | X58: =$G58*$E58*$T58*H58 -> 0 | Y58: 0 | Z58: 0 | AA58: =$G58*$E58*$T58*I58 -> 0
B59: 48 | E59: 0 | G59: 0 | H59: 0 | I59: 0 | J59: 0 | K59: 0 | L59: 0 | M59: 0 | Q59: 12 | R59: 5.8 | S59: 40 | T59: 1 | V59: 0 | W59: 0 | X59: 0 | Y59: 0 | Z59: 0 | AA59: 0
B60: 49 | E60: 0 | G60: 0 | H60: 0 | I60: 0 | J60: 0 | K60: 0 | L60: 0 | M60: 0 | Q60: 12 | R60: 5.8 | S60: 40 | T60: 1 | V60: 0 | W60: 0 | X60: 0 | Y60: 0 | Z60: 0 | AA60: 0
B61: 50 | E61: 0 | G61: 0 | H61: 0 | I61: 0 | J61: 0 | K61: 0 | L61: 0 | M61: 0 | Q61: 12 | R61: 5.8 | S61: 40 | T61: 1 | V61: 0 | W61: 0 | X61: 0 | Y61: 0 | Z61: 0 | AA61: 0
B62: 51 | E62: 0 | G62: 0 | H62: 0 | I62: 0 | J62: 0 | K62: 0 | L62: 0 | M62: 0 | Q62: 12 | R62: 5.8 | S62: 40 | T62: 1 | V62: 0 | W62: 0 | X62: 0 | Y62: 0 | Z62: 0 | AA62: 0
B63: 52 | E63: 0 | G63: 0 | H63: 0 | I63: 0 | J63: 0 | K63: 0 | L63: 0 | M63: 0 | Q63: 12 | R63: 5.8 | S63: 40 | T63: 1 | V63: 0 | W63: 0 | X63: 0 | Y63: 0 | Z63: 0 | AA63: 0
B64: 53 | E64: 0 | G64: 0 | H64: 0 | I64: 0 | J64: 0 | K64: 0 | L64: 0 | M64: 0 | Q64: 12 | R64: 5.8 | S64: 40 | T64: 1 | V64: 0 | W64: 0 | X64: 0 | Y64: 0 | Z64: 0 | AA64: 0
B65: 54 | E65: 0 | G65: 0 | H65: 0 | I65: 0 | J65: 0 | K65: 0 | L65: 0 | M65: 0 | Q65: 12 | R65: 5.8 | S65: 40 | T65: 1 | V65: 0 | W65: 0 | X65: 0 | Y65: 0 | Z65: 0 | AA65: 0
B66: 55 | E66: 0 | G66: 0 | H66: 0 | I66: 0 | J66: 0 | K66: 0 | L66: 0 | M66: 0 | Q66: 12 | R66: 5.8 | S66: 40 | T66: 1 | V66: 0 | W66: 0 | X66: 0 | Y66: 0 | Z66: 0 | AA66: 0
B67: 56 | E67: 0 | G67: 0 | H67: 0 | I67: 0 | J67: 0 | K67: 0 | L67: 0 | M67: 0 | Q67: 12 | R67: 5.8 | S67: 40 | T67: 1 | V67: 0 | W67: 0 | X67: =$G67*$E67*$T67*H67 -> 0 | Y67: =$G67*$E67*$T67*H67 -> 0 | Z67: =$G67*$E67*$T67*I67 -> 0 | AA67: =$G67*$E67*$T67*I67 -> 0
B68: 57 | E68: 0 | G68: 0 | H68: 0 | I68: 0 | J68: =V68*W68*0.001 -> 0 | K68: 0 | L68: 0 | M68: 0 | Q68: 12 | R68: 5.8 | S68: 40 | T68: 1 | V68: =G68*E68*T68 -> 0 | W68: =Q68*R68*S68*H68+(168-Q68*R68)*S68*I68 -> 0 | X68: =$G68*$E68*$T68*H68 -> 0 | Y68: =$G68*$E68*$T68*H68 -> 0 | Z68: =$G68*$E68*$T68*I68 -> 0 | AA68: =$G68*$E68*$T68*I68 -> 0
B69: 58 | E69: 0 | G69: 0 | H69: 0 | I69: 0 | J69: =V69*W69*0.001 -> 0 | K69: 0 | L69: 0 | M69: 0 | Q69: 12 | R69: 5.8 | S69: 40 | T69: 1 | V69: =G69*E69*T69 -> 0 | W69: =Q69*R69*S69*H69+(168-Q69*R69)*S69*I69 -> 0 | X69: =$G69*$E69*$T69*H69 -> 0 | Y69: =$G69*$E69*$T69*H69 -> 0 | Z69: =$G69*$E69*$T69*I69 -> 0 | AA69: =$G69*$E69*$T69*I69 -> 0
B70: 59 | E70: 0 | G70: 0 | H70: 0 | I70: 0 | J70: 0 | K70: 0 | L70: 0 | M70: 0 | Q70: 12 | R70: 5.8 | S70: 40 | T70: 1 | V70: 0 | W70: 0 | X70: 0 | Y70: 0 | Z70: 0 | AA70: 0
B71: 60 | E71: 0 | G71: 0 | H71: 0 | I71: 0 | J71: 0 | K71: 0 | L71: 0 | M71: 0 | Q71: 12 | R71: 5.8 | S71: 40 | T71: 1 | V71: 0 | W71: 0 | X71: 0 | Y71: 0 | Z71: 0 | AA71: 0
I73: Total | J73: =SUM(J$12:J$72) -> 31522.1568 | K73: =SUM(K$12:K$72) -> 3782.658816 | L73: =SUM(L$12:L$72) -> 1 | M73: =SUM(M$12:M$72) -> 5989.209792 | V73: =SUM(V$12:V$72) -> 23474 | W73: =J73*1000/V73 -> 1342.854085 | X73: =SUM(X$12:X$72) -> 9443.4 | Y73: =SUM(Y$12:Y$72) -> 9443.4 | Z73: =SUM(Z$12:Z$72) -> 1329.2 | AA73: =SUM(AA$12:AA$72) -> 1329.2
I74: Metered electricity copied from Cell E4 for reconciliation | J74: =IF(E4>0,E4,"") ->  | L74: =IF(E4>0,ResultsEnergy/J74-1,"") ->  | X74: 181800 | Y74: 181800 | Z74: 54600 | AA74: 54600
B75: Blue box for printing
C76: Summary Output Table | J76: Annual energy use (kWh) | K76: Annual cost of energy (£) | L76: % of total cost | M76: =M11 -> Emissions (kgCO2) | O76: kWh/m2 per annum TFA
C77: Sub-meter reference | D77: Load list
B78: =ROW()-ROW($B$11) -> 67 | C78: No meter | D78: Space heating | J78: =SUM(IF($D$13:$D$72=$D78,J$13:J$72,0)) -> 0 | K78: =SUM(IF($D$12:$D$72=$D78,K$12:K$72,0)) -> 0 | L78: =IF($K$73>0,K78/$K$73,0) -> 0 | M78: =SUM(IF($D$13:$D$72=$D78,M$13:M$72,0)) -> 0 | O78: =J78/$G$4 -> 0 | V78: =SUM(IF($D$12:$D$72=$D78,V$12:V$72,0)) -> 0 | W78: =SUM(IF($D$12:$D$72=$D78,W$12:W$72,0)) -> 0 | X78: =SUM(IF($D$12:$D$72=$D78,X$12:X$72,0)) -> 0 | Y78: =SUM(IF($D$12:$D$72=$D78,Y$12:Y$72,0)) -> 0 | Z78: =SUM(IF($D$12:$D$72=$D78,Z$12:Z$72,0)) -> 0 | AA78: =SUM(IF($D$12:$D$72=$D78,AA$12:AA$72,0)) -> 0
B79: 68 | C79: E02 | D79: Hot water | J79: =SUM(IF($D$13:$D$72=$D79,J$13:J$72,0)) -> 2004.48 | K79: =SUM(IF($D$12:$D$72=$D79,K$12:K$72,0)) -> 240.5376 | L79: 0.06358955743 | M79: =SUM(IF($D$13:$D$72=$D79,M$13:M$72,0)) -> 380.8512 | O79: 2.00448 | V79: =SUM(IF($D$12:$D$72=$D79,V$12:V$72,0)) -> 6000 | W79: =SUM(IF($D$12:$D$72=$D79,W$12:W$72,0)) -> 334.08 | X79: =SUM(IF($D$12:$D$72=$D79,X$12:X$72,0)) -> 720 | Y79: =SUM(IF($D$12:$D$72=$D79,Y$12:Y$72,0)) -> 720 | Z79: =SUM(IF($D$12:$D$72=$D79,Z$12:Z$72,0)) -> 0 | AA79: =SUM(IF($D$12:$D$72=$D79,AA$12:AA$72,0)) -> 0
B80: 69 | C80: E03 | D80: Fans | J80: =SUM(IF($D$13:$D$72=$D80,J$13:J$72,0)) -> 334.08 | K80: =SUM(IF($D$12:$D$72=$D80,K$12:K$72,0)) -> 40.0896 | L80: 0.01059825957 | M80: =SUM(IF($D$13:$D$72=$D80,M$13:M$72,0)) -> 63.4752 | O80: 0.33408 | V80: =SUM(IF($D$12:$D$72=$D80,V$12:V$72,0)) -> 200 | W80: =SUM(IF($D$12:$D$72=$D80,W$12:W$72,0)) -> 1670.4 | X80: =SUM(IF($D$12:$D$72=$D80,X$12:X$72,0)) -> 120 | Y80: =SUM(IF($D$12:$D$72=$D80,Y$12:Y$72,0)) -> 120 | Z80: =SUM(IF($D$12:$D$72=$D80,Z$12:Z$72,0)) -> 0 | AA80: =SUM(IF($D$12:$D$72=$D80,AA$12:AA$72,0)) -> 0
B81: 70 | C81: E04 | D81: Pumps | J81: =SUM(IF($D$13:$D$72=$D81,J$13:J$72,0)) -> 325.728 | K81: =SUM(IF($D$12:$D$72=$D81,K$12:K$72,0)) -> 39.08736 | L81: 0.01033330308 | M81: =SUM(IF($D$13:$D$72=$D81,M$13:M$72,0)) -> 61.88832 | O81: 0.325728 | V81: =SUM(IF($D$12:$D$72=$D81,V$12:V$72,0)) -> 260 | W81: =SUM(IF($D$12:$D$72=$D81,W$12:W$72,0)) -> 2505.6 | X81: =SUM(IF($D$12:$D$72=$D81,X$12:X$72,0)) -> 117 | Y81: =SUM(IF($D$12:$D$72=$D81,Y$12:Y$72,0)) -> 117 | Z81: =SUM(IF($D$12:$D$72=$D81,Z$12:Z$72,0)) -> 0 | AA81: =SUM(IF($D$12:$D$72=$D81,AA$12:AA$72,0)) -> 0
B82: 71 | C82: E05 | D82: Refrigeration | J82: =SUM(IF($D$12:$D$72=$D82,J$12:J$72,0)) -> 0 | K82: =SUM(IF($D$12:$D$72=$D82,K$12:K$72,0)) -> 0 | L82: 0 | M82: =SUM(IF($D$13:$D$72=$D82,M$13:M$72,0)) -> 0 | O82: 0 | V82: =SUM(IF($D$12:$D$72=$D82,V$12:V$72,0)) -> 0 | W82: =SUM(IF($D$12:$D$72=$D82,W$12:W$72,0)) -> 0 | X82: =SUM(IF($D$12:$D$72=$D82,X$12:X$72,0)) -> 0 | Y82: =SUM(IF($D$12:$D$72=$D82,Y$12:Y$72,0)) -> 0 | Z82: =SUM(IF($D$12:$D$72=$D82,Z$12:Z$72,0)) -> 0 | AA82: =SUM(IF($D$12:$D$72=$D82,AA$12:AA$72,0)) -> 0
B83: 72 | C83: E06 | D83: Lighting (internal) | J83: =SUM(IF($D$12:$D$72=$D83,J$12:J$72,0)) -> 20485.0848 | K83: =SUM(IF($D$12:$D$72=$D83,K$12:K$72,0)) -> 2458.210176 | L83: 0.6498630449 | M83: =SUM(IF($D$13:$D$72=$D83,M$13:M$72,0)) -> 3892.166112 | O83: 20.4850848 | V83: =SUM(IF($D$12:$D$72=$D83,V$12:V$72,0)) -> 9644 | W83: =SUM(IF($D$12:$D$72=$D83,W$12:W$72,0)) -> 10900.8 | X83: =SUM(IF($D$12:$D$72=$D83,X$12:X$72,0)) -> 6438.9 | Y83: =SUM(IF($D$12:$D$72=$D83,Y$12:Y$72,0)) -> 6438.9 | Z83: =SUM(IF($D$12:$D$72=$D83,Z$12:Z$72,0)) -> 650.2 | AA83: =SUM(IF($D$12:$D$72=$D83,AA$12:AA$72,0)) -> 650.2
B84: 73 | C84: E07 | D84: Lighting (external) | J84: =SUM(IF($D$12:$D$72=$D84,J$12:J$72,0)) -> 389.664 | K84: =SUM(IF($D$12:$D$72=$D84,K$12:K$72,0)) -> 46.75968 | L84: 0.01236159069 | M84: =SUM(IF($D$13:$D$72=$D84,M$13:M$72,0)) -> 74.03616 | O84: 0.389664 | V84: =SUM(IF($D$12:$D$72=$D84,V$12:V$72,0)) -> 450 | W84: =SUM(IF($D$12:$D$72=$D84,W$12:W$72,0)) -> 865.92 | X84: =SUM(IF($D$12:$D$72=$D84,X$12:X$72,0)) -> 0 | Y84: =SUM(IF($D$12:$D$72=$D84,Y$12:Y$72,0)) -> 0 | Z84: =SUM(IF($D$12:$D$72=$D84,Z$12:Z$72,0)) -> 99 | AA84: =SUM(IF($D$12:$D$72=$D84,AA$12:AA$72,0)) -> 99
B85: 74 | C85: E08 | D85: Small power | J85: =SUM(IF($D$12:$D$72=$D85,J$12:J$72,0)) -> 0 | K85: =SUM(IF($D$12:$D$72=$D85,K$12:K$72,0)) -> 0 | L85: 0 | M85: =SUM(IF($D$13:$D$72=$D85,M$13:M$72,0)) -> 0 | O85: 0 | V85: =SUM(IF($D$12:$D$72=$D85,V$12:V$72,0)) -> 0 | W85: =SUM(IF($D$12:$D$72=$D85,W$12:W$72,0)) -> 0 | X85: =SUM(IF($D$12:$D$72=$D85,X$12:X$72,0)) -> 0 | Y85: =SUM(IF($D$12:$D$72=$D85,Y$12:Y$72,0)) -> 0 | Z85: =SUM(IF($D$12:$D$72=$D85,Z$12:Z$72,0)) -> 0 | AA85: =SUM(IF($D$12:$D$72=$D85,AA$12:AA$72,0)) -> 0
B86: 75 | C86: E09 | D86: ICT | J86: =SUM(IF($D$12:$D$72=$D86,J$12:J$72,0)) -> 4879.68 | K86: =SUM(IF($D$12:$D$72=$D86,K$12:K$72,0)) -> 585.5616 | L86: 0.1548015902 | M86: =SUM(IF($D$13:$D$72=$D86,M$13:M$72,0)) -> 927.1392 | O86: 4.87968 | V86: =SUM(IF($D$12:$D$72=$D86,V$12:V$72,0)) -> 1450 | W86: =SUM(IF($D$12:$D$72=$D86,W$12:W$72,0)) -> 11913.6 | X86: =SUM(IF($D$12:$D$72=$D86,X$12:X$72,0)) -> 1060 | Y86: =SUM(IF($D$12:$D$72=$D86,Y$12:Y$72,0)) -> 1060 | Z86: =SUM(IF($D$12:$D$72=$D86,Z$12:Z$72,0)) -> 490 | AA86: =SUM(IF($D$12:$D$72=$D86,AA$12:AA$72,0)) -> 490
B87: 76 | C87: E10 | D87: Catering single site | J87: =SUM(IF($D$12:$D$72=$D87,J$12:J$72,0)) -> 3103.44 | K87: =SUM(IF($D$12:$D$72=$D87,K$12:K$72,0)) -> 372.4128 | L87: 0.0984526541 | M87: =SUM(IF($D$13:$D$72=$D87,M$13:M$72,0)) -> 589.6536 | O87: 3.10344 | V87: =SUM(IF($D$12:$D$72=$D87,V$12:V$72,0)) -> 5470 | W87: =SUM(IF($D$12:$D$72=$D87,W$12:W$72,0)) -> 4972.8 | X87: =SUM(IF($D$12:$D$72=$D87,X$12:X$72,0)) -> 987.5 | Y87: =SUM(IF($D$12:$D$72=$D87,Y$12:Y$72,0)) -> 987.5 | Z87: =SUM(IF($D$12:$D$72=$D87,Z$12:Z$72,0)) -> 90 | AA87: =SUM(IF($D$12:$D$72=$D87,AA$12:AA$72,0)) -> 90
B88: 77 | C88: E11 | D88: Catering multiple site | J88: =SUM(IF($D$12:$D$72=$D88,J$12:J$72,0)) -> 0 | K88: =SUM(IF($D$12:$D$72=$D88,K$12:K$72,0)) -> 0 | L88: 0 | M88: =SUM(IF($D$13:$D$72=$D88,M$13:M$72,0)) -> 0 | O88: 0 | V88: =SUM(IF($D$12:$D$72=$D88,V$12:V$72,0)) -> 0 | W88: =SUM(IF($D$12:$D$72=$D88,W$12:W$72,0)) -> 0 | X88: =SUM(IF($D$12:$D$72=$D88,X$12:X$72,0)) -> 0 | Y88: =SUM(IF($D$12:$D$72=$D88,Y$12:Y$72,0)) -> 0 | Z88: =SUM(IF($D$12:$D$72=$D88,Z$12:Z$72,0)) -> 0 | AA88: =SUM(IF($D$12:$D$72=$D88,AA$12:AA$72,0)) -> 0
B89: 78 | C89: No meter | D89: Humidification | J89: =SUM(IF($D$12:$D$72=$D89,J$12:J$72,0)) -> 0 | K89: =SUM(IF($D$12:$D$72=$D89,K$12:K$72,0)) -> 0 | L89: 0 | M89: =SUM(IF($D$13:$D$72=$D89,M$13:M$72,0)) -> 0 | O89: 0 | V89: =SUM(IF($D$12:$D$72=$D89,V$12:V$72,0)) -> 0 | W89: =SUM(IF($D$12:$D$72=$D89,W$12:W$72,0)) -> 0 | X89: =SUM(IF($D$12:$D$72=$D89,X$12:X$72,0)) -> 0 | Y89: =SUM(IF($D$12:$D$72=$D89,Y$12:Y$72,0)) -> 0 | Z89: =SUM(IF($D$12:$D$72=$D89,Z$12:Z$72,0)) -> 0 | AA89: =SUM(IF($D$12:$D$72=$D89,AA$12:AA$72,0)) -> 0
B90: 79 | C90: No meter | D90: Controls | J90: =SUM(IF($D$12:$D$72=$D90,J$12:J$72,0)) -> 0 | K90: =SUM(IF($D$12:$D$72=$D90,K$12:K$72,0)) -> 0 | L90: 0 | M90: =SUM(IF($D$13:$D$72=$D90,M$13:M$72,0)) -> 0 | O90: 0 | V90: =SUM(IF($D$12:$D$72=$D90,V$12:V$72,0)) -> 0 | W90: =SUM(IF($D$12:$D$72=$D90,W$12:W$72,0)) -> 0 | X90: =SUM(IF($D$12:$D$72=$D90,X$12:X$72,0)) -> 0 | Y90: =SUM(IF($D$12:$D$72=$D90,Y$12:Y$72,0)) -> 0 | Z90: =SUM(IF($D$12:$D$72=$D90,Z$12:Z$72,0)) -> 0 | AA90: =SUM(IF($D$12:$D$72=$D90,AA$12:AA$72,0)) -> 0
B91: 80 | C91: E14 | D91: Vertical transport | J91: =SUM(IF($D$12:$D$72=$D91,J$12:J$72,0)) -> 0 | K91: =SUM(IF($D$12:$D$72=$D91,K$12:K$72,0)) -> 0 | L91: 0 | M91: =SUM(IF($D$13:$D$72=$D91,M$13:M$72,0)) -> 0 | O91: 0 | V91: =SUM(IF($D$12:$D$72=$D91,V$12:V$72,0)) -> 0 | W91: =SUM(IF($D$12:$D$72=$D91,W$12:W$72,0)) -> 0 | X91: =SUM(IF($D$12:$D$72=$D91,X$12:X$72,0)) -> 0 | Y91: =SUM(IF($D$12:$D$72=$D91,Y$12:Y$72,0)) -> 0 | Z91: =SUM(IF($D$12:$D$72=$D91,Z$12:Z$72,0)) -> 0 | AA91: =SUM(IF($D$12:$D$72=$D91,AA$12:AA$72,0)) -> 0
B92: 81 | C92: E15 | D92: Other (Regulated) | J92: =SUM(IF($D$12:$D$72=$D92,J$12:J$72,0)) -> 0 | K92: =SUM(IF($D$12:$D$72=$D92,K$12:K$72,0)) -> 0 | L92: 0 | M92: =SUM(IF($D$13:$D$72=$D92,M$13:M$72,0)) -> 0 | O92: 0 | V92: =SUM(IF($D$12:$D$72=$D92,V$12:V$72,0)) -> 0 | W92: =SUM(IF($D$12:$D$72=$D92,W$12:W$72,0)) -> 0 | X92: =SUM(IF($D$12:$D$72=$D92,X$12:X$72,0)) -> 0 | Y92: =SUM(IF($D$12:$D$72=$D92,Y$12:Y$72,0)) -> 0 | Z92: =SUM(IF($D$12:$D$72=$D92,Z$12:Z$72,0)) -> 0 | AA92: =SUM(IF($D$12:$D$72=$D92,AA$12:AA$72,0)) -> 0
B93: 82 | C93: E16 | D93: Other (Non-regulated) | J93: =SUM(IF($D$12:$D$72=$D93,J$12:J$72,0)) -> 0 | K93: =SUM(IF($D$12:$D$72=$D93,K$12:K$72,0)) -> 0 | L93: 0 | M93: =SUM(IF($D$13:$D$72=$D93,M$13:M$72,0)) -> 0 | O93: 0 | V93: =SUM(IF($D$12:$D$72=$D93,V$12:V$72,0)) -> 0 | W93: =SUM(IF($D$12:$D$72=$D93,W$12:W$72,0)) -> 0 | X93: =SUM(IF($D$12:$D$72=$D93,X$12:X$72,0)) -> 0 | Y93: =SUM(IF($D$12:$D$72=$D93,Y$12:Y$72,0)) -> 0 | Z93: =SUM(IF($D$12:$D$72=$D93,Z$12:Z$72,0)) -> 0 | AA93: =SUM(IF($D$12:$D$72=$D93,AA$12:AA$72,0)) -> 0
I95: Totals | J95: =SUM(J78:J93) -> 31522.1568 | K95: =SUM(K78:K93) -> 3782.658816 | L95: =SUM(L76:L94) -> 1 | M95: =SUM(M78:M93) -> 5989.209792 | O95: =J95/$G$4 -> 31.5221568 | V95: =SUM(V78:V93) -> 23474 | W95: =J95*1000/V95 -> 1342.854085 | X95: =SUM(X78:X93) -> 9443.4 | Y95: =SUM(Y78:Y93) -> 9443.4 | Z95: =SUM(Z78:Z93) -> 1329.2 | AA95: =SUM(AA78:AA93) -> 1329.2
B96: Metering reports
C100: Tracked Changes table
B102: 7 | C102: ="Number of Changes in the list below: "&TEXT(nChange,"#") -> Number of Changes in the list below: 7 | K102: Results after change | Q102: Change from previous case
A103: Change | B103: Mea-sure* | C103: IItems(s) being changed (can be edited) | D103: Parameter being changed | G103: No.of cells changed | H103: Previous value | I103: New | J103: Energy | K103: Cost | L103: % change | M103: Emissions | Q103: Change | R103: Change | S103: Change | T103: Change
I104: Value | J104: kWh | K104: (£) | L104: of base | M104: kgCO2 | Q104: kWh | R104: (£) | S104: £ (%) | T104: kgCO2
C105: Base Case | G105: 0 | J105: 35242.9728 | K105: 4229.16 | L105: =IF($K105*$K$105=0,"",K105/$K$105) -> 1 | M105: 6696.164832
A106: ChangeA | B106: 1 | C106: Hall lighting | D106: Rated Watts (or W/m2) | G106: 1 | H106: 35 | I106: 26 | J106: 34385.8848 | K106: 4126.31 | L106: 0.9756807498 | M106: 6533.318112 | Q106: =IF($K106*$K$105=0,"",INDEX(J:J,ROW(),1)-INDEX(J:J,ROW()-1,1)) -> -857.088 | R106: =IF($K106*$K$105=0,"",INDEX(K:K,ROW(),1)-INDEX(K:K,ROW()-1,1)) -> -102.85 | S106: =IF($K106*$K$105=0,"",R106/$K$105) -> -0.02431925016 | T106: =IF($K106*$K$105=0,"",INDEX(M:M,ROW(),1)-INDEX(M:M,ROW()-1,1)) -> -162.84672
A107: ChangeB | B107: 1 | C107: Classroom main lighting | D107: Rated Watts (or W/m2) | G107: 1 | H107: 11.5 | I107: 8.1 | J107: 31424.784 | K107: 3770.97 | L107: 0.8916593366 | M107: 5970.70896 | Q107: -2961.1008 | R107: -355.34 | S107: -0.08402141324 | T107: -562.609152
A108: ChangeC | B108: 3 | C108: Classroom main lighting | D108: Load factor "in use" | G108: 3 | H108: 0.8 | I108: 0.65 | J108: 28655.7504 | K108: 3438.69 | L108: 0.8130905428 | M108: 5444.592576 | Q108: -2769.0336 | R108: -332.28 | S108: -0.0785687938 | T108: -526.116384
A109: ChangeD | B109: 2 | C109: Classroom displays | D109: Rated Watts (or W/m2) | G109: 1 | H109: 60 | I109: 150 | J109: 30081.3504 | K109: 3609.76 | L109: 0.8535406558 | M109: 5715.456576 | Q109: 1425.6 | R109: 171.07 | S109: 0.04045011302 | T109: 270.864
A110: ChangeE | B110: 2 | C110: Network hub cabinet | D110: Rated Watts (or W/m2) | G110: 1 | H110: 120 | I110: 250 | J110: 30954.9504 | K110: 3714.59 | L110: 0.8783280841 | M110: 5881.440576 | Q110: 873.6 | R110: 104.83 | S110: 0.02478742824 | T110: 165.984
A111: ChangeF | B111: 3 | C111: Servery | D111: Load factor "out of hours" | G111: 1 | H111: 0.12 | I111: 0 | J111: 29964.2304 | K111: 3595.71 | L111: 0.8502184831 | M111: 5693.203776 | Q111: -990.72 | R111: -118.88 | S111: -0.02810960096 | T111: -188.2368
A112: ChangeG | B112: 4 | C112: General change | D112: Days per week | G112: 1 | H112: 5.4 | I112: 5.8 | J112: 31522.1568 | K112: 3782.66 | L112: 0.8944234789 | M112: 5989.209792 | Q112: 1557.9264 | R112: 186.95 | S112: 0.04420499579 | T112: 296.006016
B113: -
B114: -
B115: -
B116: -
B117: -
B118: -
B119: -
B120: -
B121: -
B122: -
B123: -
B124: * Note: In tha table below, changes are grouped together with the same Measure number that you select in the table above | P124: Total | Q124: =SUM(Q106:Q123) -> -3720.816 | R124: =SUM(R106:R123) -> -446.5 | S124: -0.1055765211 | T124: -706.95504
B126: Mea-sure* | C126: Summary of the effect of the Changes specified above, grouped by Measure | I126: Changes included | J126: kWh | K126: Cost (£) | L126: Percent | M126: kgCO2
B127: 1 | C127: Classroom and hall relamping | I127: =IF($B$106=B127,"A","")&IF($B$107=B127,"B","")&IF($B$108=B127,"C","")&IF($B$109=B127,"D","")&IF($B$110=B127,"E","")&IF($B$111=B127,"F","")&IF($B$112=B127,"G","")&IF($B$113=B127,"H","")&IF($B$114=B127,"I","")&IF($B$115=B127,"J","")&IF($B$116=B127,"K","")&IF($B$117=B127,"L","")&IF($B$118=B127,"M","")&IF($B$119=B127,"N","")&IF($B$120=B127,"O","")&IF($B$121=B127,"P","")&IF($B$122=B127,"Q","")&IF($B$123=B127,"R","") -> AB | J127: =SUM(IF($B$106:$B$123=$B127,Q$106:Q$123,0)) -> -3818.1888 | K127: =SUM(IF($B$106:$B$123=$B127,R$106:R$123,0)) -> -458.19 | L127: =IF($K$105="","",K127/$K$105) -> -0.1083406634 | M127: =SUM(IF($B$106:$B$123=$B127,T$106:T$123,0)) -> -725.455872
B128: 2 | C128: Classroom display upgrades and associated network hub cabinet expansion | I128: =IF($B$106=B128,"A","")&IF($B$107=B128,"B","")&IF($B$108=B128,"C","")&IF($B$109=B128,"D","")&IF($B$110=B128,"E","")&IF($B$111=B128,"F","")&IF($B$112=B128,"G","")&IF($B$113=B128,"H","")&IF($B$114=B128,"I","")&IF($B$115=B128,"J","")&IF($B$116=B128,"K","")&IF($B$117=B128,"L","")&IF($B$118=B128,"M","")&IF($B$119=B128,"N","")&IF($B$120=B128,"O","")&IF($B$121=B128,"P","")&IF($B$122=B128,"Q","")&IF($B$123=B128,"R","") -> DE | J128: =SUM(IF($B$106:$B$123=$B128,Q$106:Q$123,0)) -> 2299.2 | K128: =SUM(IF($B$106:$B$123=$B128,R$106:R$123,0)) -> 275.9 | L128: =IF($K$105="","",K128/$K$105) -> 0.06523754126 | M128: =SUM(IF($B$106:$B$123=$B128,T$106:T$123,0)) -> 436.848
B129: 3 | C129: Operational changes to classroom lighting and servery equipment | I129: CF | J129: =SUM(IF($B$106:$B$123=$B129,Q$106:Q$123,0)) -> -3759.7536 | K129: =SUM(IF($B$106:$B$123=$B129,R$106:R$123,0)) -> -451.16 | L129: -0.1066783948 | M129: =SUM(IF($B$106:$B$123=$B129,T$106:T$123,0)) -> -714.353184
B130: 4 | C130: Extended weekend use | I130: G | J130: =SUM(IF($B$106:$B$123=$B130,Q$106:Q$123,0)) -> 1557.9264 | K130: =SUM(IF($B$106:$B$123=$B130,R$106:R$123,0)) -> 186.95 | L130: 0.04420499579 | M130: =SUM(IF($B$106:$B$123=$B130,T$106:T$123,0)) -> 296.006016
B131: 5 | J131: =SUM(IF($B$106:$B$123=$B131,Q$106:Q$123,0)) -> 0 | K131: =SUM(IF($B$106:$B$123=$B131,R$106:R$123,0)) -> 0 | L131: 0 | M131: =SUM(IF($B$106:$B$123=$B131,T$106:T$123,0)) -> 0
B132: 6 | J132: =SUM(IF($B$106:$B$123=$B132,Q$106:Q$123,0)) -> 0 | K132: =SUM(IF($B$106:$B$123=$B132,R$106:R$123,0)) -> 0 | L132: 0 | M132: =SUM(IF($B$106:$B$123=$B132,T$106:T$123,0)) -> 0
B133: 7 | J133: =SUM(IF($B$106:$B$123=$B133,Q$106:Q$123,0)) -> 0 | K133: =SUM(IF($B$106:$B$123=$B133,R$106:R$123,0)) -> 0 | L133: 0 | M133: =SUM(IF($B$106:$B$123=$B133,T$106:T$123,0)) -> 0
B134: 8 | J134: =SUM(IF($B$106:$B$123=$B134,Q$106:Q$123,0)) -> 0 | K134: =SUM(IF($B$106:$B$123=$B134,R$106:R$123,0)) -> 0 | L134: 0 | M134: =SUM(IF($B$106:$B$123=$B134,T$106:T$123,0)) -> 0
B135: 9 | J135: =SUM(IF($B$106:$B$123=$B135,Q$106:Q$123,0)) -> 0 | K135: =SUM(IF($B$106:$B$123=$B135,R$106:R$123,0)) -> 0 | L135: 0 | M135: =SUM(IF($B$106:$B$123=$B135,T$106:T$123,0)) -> 0
I136: Totals | J136: =SUM(J127:J135) -> -3720.816 | K136: =SUM(K127:K135) -> -446.5 | L136: =SUM(L127:L135) -> -0.1055765211 | M136: =SUM(M127:M135) -> -706.95504
C141: m2
C142: Units
C149: Sub meter lookup list
C150: No meter
C151: E01
C152: E02
C153: E03
C154: E04
C155: E05
C156: E06
C157: E07
C158: E08
C159: E09 | F159: =SUMIF(C78:C93, "E1", J78:J93) -> 0
C160: E10
C161: E11
C162: E12
C163: E13
C164: E14
C165: E15
C166: E16
C167: E17
C168: E18
C169: E19
C170: E20
C171: E21
C172: E22
C173: E23
C174: E24
C175: E25
C176: E26
C177: E27
C178: E28
C179: E29
C180: E30

Sheet Sub-Meter Report (optional)
C2: Sub-meter Report | F2: A | J2: Monthly Table | M2: M
F3: Do not adjust grey boxes | M3: Do not adjust grey boxes
C4: Sub meter allocation | D4: ='Energy input sheet'!J76 -> Annual energy use (kWh) | E4: ='Energy input sheet'!K76 -> Annual cost of energy (£) | F4: ='Energy input sheet'!L76 -> % of total cost | G4: Location (optional) | H4: Meter type (optional) | J4: =C4 -> Sub meter allocation | K4: Modelled submeter values kWh pcm | L4: Actual submeter values kWh | M4: Variation vs load calc | N4: Notes
C5: E01 | D5: =SUMIF('Energy input sheet'!$C$78:$C$93, "E01", 'Energy input sheet'!$J$78:$J$94) -> 0 | E5: =SUMIF('Energy input sheet'!$C$78:$C$93, "E01", 'Energy input sheet'!K78:K94) -> 0 | F5: =SUMIF('Energy input sheet'!$C$78:$C$93, "E01", 'Energy input sheet'!L78:L94) -> 0 | J5: E01 | K5: =D5/12 -> 0 | L5: 0 | M5: =L5-K5 -> 0
C6: E02 | D6: =SUMIF('Energy input sheet'!$C$78:$C$93, "E02", 'Energy input sheet'!J78:J94) -> 2004.48 | E6: =SUMIF('Energy input sheet'!$C$78:$C$93, "E02", 'Energy input sheet'!K78:K94) -> 240.5376 | F6: =SUMIF('Energy input sheet'!$C$78:$C$93, "E02", 'Energy input sheet'!L78:L94) -> 0.06358955743 | J6: E02 | K6: 167.04 | L6: 200 | M6: =L6-K6 -> 32.96
C7: E03 | D7: =SUMIF('Energy input sheet'!$C$78:$C$93, "E03", 'Energy input sheet'!J78:J94) -> 334.08 | E7: =SUMIF('Energy input sheet'!$C$78:$C$93, "E03", 'Energy input sheet'!K78:K94) -> 40.0896 | F7: =SUMIF('Energy input sheet'!$C$78:$C$93, "E03", 'Energy input sheet'!L78:L94) -> 0.01059825957 | J7: E03 | K7: 27.84 | L7: 45 | M7: 17.16
C8: E04 | D8: =SUMIF('Energy input sheet'!$C$78:$C$93, "E04", 'Energy input sheet'!J78:J94) -> 325.728 | E8: =SUMIF('Energy input sheet'!$C$78:$C$93, "E04", 'Energy input sheet'!K78:K94) -> 39.08736 | F8: =SUMIF('Energy input sheet'!$C$78:$C$93, "E04", 'Energy input sheet'!L78:L94) -> 0.01033330308 | J8: E04 | K8: 27.144 | L8: 0 | M8: -27.144
C9: E05 | D9: =SUMIF('Energy input sheet'!$C$78:$C$93, "E05", 'Energy input sheet'!J78:J94) -> 0 | E9: =SUMIF('Energy input sheet'!$C$78:$C$93, "E05", 'Energy input sheet'!K78:K94) -> 0 | F9: =SUMIF('Energy input sheet'!$C$78:$C$93, "E05", 'Energy input sheet'!L78:L94) -> 0 | J9: E05 | K9: 0 | L9: 0 | M9: 0
C10: E06 | D10: =SUMIF('Energy input sheet'!$C$78:$C$93, "E06", 'Energy input sheet'!J78:J94) -> 20485.0848 | E10: =SUMIF('Energy input sheet'!$C$78:$C$93, "E06", 'Energy input sheet'!K78:K94) -> 2458.210176 | F10: =SUMIF('Energy input sheet'!$C$78:$C$93, "E06", 'Energy input sheet'!L78:L94) -> 0.6498630449 | J10: E06 | K10: 1707.0904 | L10: 1600 | M10: -107.0904
C11: E07 | D11: =SUMIF('Energy input sheet'!$C$78:$C$93, "E07", 'Energy input sheet'!J78:J94) -> 389.664 | E11: =SUMIF('Energy input sheet'!$C$78:$C$93, "E07", 'Energy input sheet'!K78:K94) -> 46.75968 | F11: =SUMIF('Energy input sheet'!$C$78:$C$93, "E07", 'Energy input sheet'!L78:L94) -> 0.01236159069 | J11: E07 | K11: 32.472 | L11: 30 | M11: -2.472
C12: E08 | D12: =SUMIF('Energy input sheet'!$C$78:$C$93, "E08", 'Energy input sheet'!J78:J94) -> 0 | E12: =SUMIF('Energy input sheet'!$C$78:$C$93, "E08", 'Energy input sheet'!K78:K94) -> 0 | F12: =SUMIF('Energy input sheet'!$C$78:$C$93, "E08", 'Energy input sheet'!L78:L94) -> 0 | J12: E08 | K12: 0 | L12: 0 | M12: 0
C13: E09 | D13: =SUMIF('Energy input sheet'!$C$78:$C$93, "E09", 'Energy input sheet'!J78:J94) -> 4879.68 | E13: =SUMIF('Energy input sheet'!$C$78:$C$93, "E09", 'Energy input sheet'!K78:K94) -> 585.5616 | F13: =SUMIF('Energy input sheet'!$C$78:$C$93, "E09", 'Energy input sheet'!L78:L94) -> 0.1548015902 | J13: E09 | K13: 406.64 | L13: 400 | M13: -6.64
C14: E10 | D14: =SUMIF('Energy input sheet'!$C$78:$C$93, "E10", 'Energy input sheet'!J78:J94) -> 3103.44 | E14: =SUMIF('Energy input sheet'!$C$78:$C$93, "E10", 'Energy input sheet'!K78:K94) -> 372.4128 | F14: =SUMIF('Energy input sheet'!$C$78:$C$93, "E10", 'Energy input sheet'!L78:L94) -> 0.0984526541 | J14: E10 | K14: 258.62 | L14: 267 | M14: 8.38
C15: E11 | D15: =SUMIF('Energy input sheet'!$C$78:$C$93, "E11", 'Energy input sheet'!J78:J94) -> 0 | E15: =SUMIF('Energy input sheet'!$C$78:$C$93, "E11", 'Energy input sheet'!K78:K94) -> 0 | F15: =SUMIF('Energy input sheet'!$C$78:$C$93, "E11", 'Energy input sheet'!L78:L94) -> 0 | J15: E11 | K15: 0 | L15: 0 | M15: 0
C16: E12 | D16: =SUMIF('Energy input sheet'!$C$78:$C$93, "E12", 'Energy input sheet'!J78:J94) -> 0 | E16: =SUMIF('Energy input sheet'!$C$78:$C$93, "E12", 'Energy input sheet'!K78:K94) -> 0 | F16: =SUMIF('Energy input sheet'!$C$78:$C$93, "E12", 'Energy input sheet'!L78:L94) -> 0 | J16: E12 | K16: 0 | L16: 0 | M16: 0
C17: E13 | D17: =SUMIF('Energy input sheet'!$C$78:$C$93, "E13", 'Energy input sheet'!$J$78:$J$94) -> 0 | E17: =SUMIF('Energy input sheet'!$C$78:$C$93, "E13", 'Energy input sheet'!$K$78:$K$94) -> 0 | F17: =SUMIF('Energy input sheet'!$C$78:$C$93, "E13", 'Energy input sheet'!$L$78:$L$94) -> 0 | J17: E13 | K17: 0 | L17: 0 | M17: 0
C18: E14 | D18: =SUMIF('Energy input sheet'!$C$78:$C$93, "E14", 'Energy input sheet'!$J$78:$J$94) -> 0 | E18: =SUMIF('Energy input sheet'!$C$78:$C$93, "E14", 'Energy input sheet'!$K$78:$K$94) -> 0 | F18: =SUMIF('Energy input sheet'!$C$78:$C$93, "E14", 'Energy input sheet'!$L$78:$L$94) -> 0 | J18: E14 | K18: 0 | L18: 0 | M18: 0
C19: E15 | D19: =SUMIF('Energy input sheet'!$C$78:$C$93, "E15", 'Energy input sheet'!$J$78:$J$94) -> 0 | E19: =SUMIF('Energy input sheet'!$C$78:$C$93, "E15", 'Energy input sheet'!$K$78:$K$94) -> 0 | F19: =SUMIF('Energy input sheet'!$C$78:$C$93, "E15", 'Energy input sheet'!$L$78:$L$94) -> 0 | J19: E15 | K19: 0 | L19: 0 | M19: 0
C20: E16 | D20: =SUMIF('Energy input sheet'!$C$78:$C$93, "E16", 'Energy input sheet'!J78:J94) -> 0 | E20: =SUMIF('Energy input sheet'!$C$78:$C$93, "E16", 'Energy input sheet'!K78:K94) -> 0 | F20: =SUMIF('Energy input sheet'!$C$78:$C$93, "E16", 'Energy input sheet'!L78:L94) -> 0 | J20: E16 | K20: 0 | L20: 0 | M20: 0
C21: E17 | D21: =SUMIF('Energy input sheet'!$C$78:$C$93, "E17", 'Energy input sheet'!J78:J94) -> 0 | E21: =SUMIF('Energy input sheet'!$C$78:$C$93, "E17", 'Energy input sheet'!K78:K94) -> 0 | F21: =SUMIF('Energy input sheet'!$C$78:$C$93, "E17", 'Energy input sheet'!L78:L94) -> 0 | J21: E17 | K21: 0 | L21: 0 | M21: 0
D23: Reconciliation check with Summary Output Table | K23: Totals, and variance between main meters and modelled values
D26: =SUM(D5:D21) -> 31522.1568 | E26: 3782.658816 | F26: 1 | J26: Monthly | K26: 2626.8464 | L26: 2542
D28: See notes on sub-metering problems and associated checklist | J28: Annual | K28: =K26*12 -> 31522.1568 | L28: =L26*12 -> 30504
J30: Meter variance | K30: =K28-L28 -> 1018.1568 | L30: =(1-K28/L28) -> -0.03337781275
D32: Back to Summary Output Table | J32: Modelled vs billed | K32: =K28-'Energy input sheet'!E4 -> 31522.1568 | L32: =(1-'Energy input sheet'!E4/L28) -> 1

Sheet Output charts (ISO 12)
B3: Operational energy, carbon dioxide emissions, and energy cost histograms
C23: Target or benchmark | D23: Space heating | E23: Hot water | F23: Fans | G23: Pumps | H23: Refrigeration | I23: Lighting (internal) | J23: Lighting (external) | K23: Small power | L23: ICT | M23: Catering (central) | N23: Catering (distributed) | O23: Humidification | P23: Controls | Q23: Vertical transport | R23: Other (Regulated) | S23: Other (Non-regulated)
B24: Projected kWh/m2 p.a. | C24: 0 | D24: ='Energy input sheet'!O78 -> 0 | E24: ='Energy input sheet'!O79 -> 2.00448 | F24: ='Energy input sheet'!O80 -> 0.33408 | G24: ='Energy input sheet'!O81 -> 0.325728 | H24: ='Energy input sheet'!O82 -> 0 | I24: ='Energy input sheet'!O83 -> 20.4850848 | J24: ='Energy input sheet'!O84 -> 0.389664 | K24: ='Energy input sheet'!O85 -> 0 | L24: ='Energy input sheet'!O86 -> 4.87968 | M24: ='Energy input sheet'!O87 -> 3.10344 | N24: ='Energy input sheet'!O88 -> 0 | O24: ='Energy input sheet'!O89 -> 0 | P24: ='Energy input sheet'!O90 -> 0 | Q24: ='Energy input sheet'!O91 -> 0 | R24: ='Energy input sheet'!O92 -> 0 | S24: ='Energy input sheet'!O93 -> 0
B25: Target or benchmark | C25: ='Energy input sheet'!L4 -> 50 | D25: 0 | E25: 0 | F25: 0 | G25: 0 | H25: 0 | I25: 0 | J25: 0 | K25: 0 | L25: 0 | M25: 0 | N25: 0 | O25: 0 | P25: 0 | Q25: 0 | R25: 0 | S25: 0
C65: =C23 -> Target or benchmark | D65: =D23 -> Space heating | E65: Hot water | F65: Fans | G65: Pumps | H65: Refrigeration | I65: Lighting (internal) | J65: Lighting (external) | K65: Small power | L65: ICT | M65: Catering (central) | N65: Catering (distributed) | O65: Humidification | P65: Controls | Q65: Vertical transport | R65: Other (Regulated) | S65: Other (Non-regulated)
B66: Projected kgCO2/m2 p.a. | C66: 0 | D66: ='Energy input sheet'!$O$78*'Energy input sheet'!$M$6 -> 0 | E66: ='Energy input sheet'!$O$79*'Energy input sheet'!$M$6 -> 0.3808512 | F66: ='Energy input sheet'!$O$80*'Energy input sheet'!$M$6 -> 0.0634752 | G66: ='Energy input sheet'!$O$81*'Energy input sheet'!$M$6 -> 0.06188832 | H66: ='Energy input sheet'!$O$82*'Energy input sheet'!$M$6 -> 0 | I66: ='Energy input sheet'!$O$83*'Energy input sheet'!$M$6 -> 3.892166112 | J66: ='Energy input sheet'!$O$84*'Energy input sheet'!$M$6 -> 0.07403616 | K66: ='Energy input sheet'!$O$85*'Energy input sheet'!$M$6 -> 0 | L66: ='Energy input sheet'!$O$86*'Energy input sheet'!$M$6 -> 0.9271392 | M66: ='Energy input sheet'!$O$87*'Energy input sheet'!$M$6 -> 0.5896536 | N66: ='Energy input sheet'!$O$88*'Energy input sheet'!$M$6 -> 0 | O66: ='Energy input sheet'!$O$89*'Energy input sheet'!$M$6 -> 0 | P66: ='Energy input sheet'!$O$90*'Energy input sheet'!$M$6 -> 0 | Q66: ='Energy input sheet'!$O$91*'Energy input sheet'!$M$6 -> 0 | R66: ='Energy input sheet'!$O$92*'Energy input sheet'!$M$6 -> 0 | S66: ='Energy input sheet'!$O$93*'Energy input sheet'!$M$6 -> 0
B67: =B25 -> Target or benchmark | C67: ='Energy input sheet'!M4 -> 9.5 | D67: 0 | E67: 0 | F67: 0 | G67: 0 | H67: 0 | I67: 0 | J67: 0 | K67: 0 | L67: 0 | M67: 0 | N67: 0 | O67: 0 | P67: 0 | Q67: 0 | R67: 0 | S67: 0
B90: Change against base-case charts | AA90: Sub-Meter allocation charts | AR90: A | BD90: M
B131: Note that the vertical axes may need to be adjusted to show your data range
AA132: Note that the vertical axes may need to be adjusted to show your data range

Sheet Example charts

Sheet Notes on use
B3: Notes on use - if you have a completed example sheet with measures you can go straight to Section 3 below
B4: Advanced users go to Section 5.
B6: 1. With a new sheet enter item data and reconcile with metered consumption (see 4. below to get a new sheet):
B7: 1.1 Review your "types of use" and if necessary edit/move/enter as free text in column D below the main table in the SUMMARY section, unhide or hide rows here as necessary
B8: 1.2 Enter the Items data in columns C to I and overall data below the items (unit costs, Hours "in use" per day and weeks per year). Enter the Building/Site name in B2.
B10: 2. Once you have a reconciled sheet, you can easily add and record reversible Changes each of which update one or more entries in the main table
B11: 2.1 Identify data that you want to change/improve - it must be a single cell or a block of IDENTICAL, NUMERIC entries (no formulae).
B12: 2.2 .. for example it might a single load factor or four Load factors of 90% that you want to change to 70%. It could also be in the overall data for example hours "in use" per day or one or both of the unit cost entries.
B13: 2.3 Press the "Add next Change" button (or hit the key combo given above it). Any problems with your data selection it should tell you - correct them and re-try.
B14: 2.4 It tells you the old value and asks for the new value (of course just one - they're all the same) so enter it. NB % must be entered as e.g. 0.65 for 65%, and no commas.
B15: 2.5 It makes the change(s), recalculates, colours the data range and records the details of the changes and the changed consumptions & costs, in the Changes table below the items list.
B16: 2.6 You can enter a measure number in the Changes table (column B) to gather all the Changes with a particular number as a Measure in the next table below. The Measures numbers can be any order and edited at any time.
B17: 2.7 Once you're happy with the Change and its effect, repeat for the next Change from step 2.1. But if you're not happy, you can delete the Change by pressing the "Delete last Change" button, then redo from 2.1.
B18: 2.8 You can over-write the descriptions or formulae in columns C or D of the Changes or Measures tables to clarify them, you can later copy in this formula back in if needed again.
B20: 3. Review and revise the Changes, the Measures and their effect
B21: 3.1 You can Apply and Revert the Changes at will - their details are recorded in the table so can be re-applied by hitting the "Apply" button. This is useful for many purposes e.g. printing before-and-after sheets.
B22: 3.2 You can remove the colours and re-apply. You can add gridlines every four rows to aid legibility, and remove them.
B23: 3.3 You can revise the order and the way that Changes are grouped into Measures by changing the Measure numbers in the Changes table - they can be in any order
B24: 3.4 You can modify the Changes: use Delete the last Change one or more times - this is NOT reversible, but the block(s) of data will then be coloured grey (until you next "Remove Colours") so you can Add in again
B25: 3.5 ... or as a little but useful cheat you can manually alter the "New Value" of any change in column H of the Changes table (or indeed the "Previous Value"). Then just "Revert Changes" and "Apply Changes".. Check the Base Case results are still as expected.
B27: 4. Getting back to a blank sheet to re-use a completed sheet (after saving with new name)
B28: 4.1 The "Erase all entries for blank sheet" button can be used. Alternatively carry out the following:
B29: 4.2 Delete all Changes by successive use of the "Delete last Change" button - the Changes table should then just say "Base Case" (no changes) and have zero Number of Changes
B30: 4.3 Unhide any rows between 4 and the bottom of the sheet say row 100 - can re-hide some on completion. To insert or delete rows see 5. below.
B31: 4.4 Delete data in the main table cells C13 to I71. You'll need to review all the overall data at the top for example the Building/site name and unit costs, hours per day and weeks.
B33: Advanced users
B34: 5. Changing the sheet rows or columns - SAVE FIRST!
B35: 5.1 Main table rows: you can delete rows freely. You can insert row(s) if you then copy a whole row with formulae into the new one(s).
B36: 5.2 Main table ordering: you can drag a row with shift-insert to the new position, but the following may be preferable:
B37: 5.3 Main table ordering: ..or as a favourite alternative: enter numbers in the desired order in Column A temporarily, hit Shift-Space (to get whole rows with col A highlighted) and then use Excel Re-order
B38: 5.4 Not a good idea to change row orders which include a coloured or uncoloured Change data block - but may be OK if it leaves or moves whole blocks. May need to Delete Changes, reorder then re-Add Changes.
B39: 5.5 Adding or moving columns beyond column M is probably OK but probably not for A to M which affect the macro actions.
B41: 6. Overall data entries and Full Load Factors
B42: 6.1 Hours per day: in column R of each data item (row) with all values taken from a single entry in the visible table. However for an item you could overwrite the formula with, say, 5. Conditional formating changes the cell colour as a record.
B43: 6.2 Weeks per year - ditto as hours per day. NB if less than 52.1, the out-of hours time is for those weeks only so in-use and out-of hours will add up to less than 8660 in this case.
B44: 6.3 Factor for full load (aka Electrical Load Factor) - is in Column T if required. Could be manually entered for each item in Column T with a covering statement in the "overall data": section near the hours per day:
B45: 6.3 cont.. for example "A Factor for full load is included as 1.15 for discharge lighting and LEDs, 0.8 for motors and 1.0 for all other items, unless noted"
B46: 6.4 Comment on Hours of use: better to have a single value (e.g. either plant or lighting your choice) and account for other with load factors. But may need two overall hours (office, production) for a factory or hospital.
B47: 6.5 Comment on Full Load factor: confuses clients better to incorporate in W/m2, or possibly into load factors in some cases.
B49: Printing and pasting options - system and time dependent
B50: 7. Print or Paste the results (row numbers below assume the TOTAL row of the main table Summary by type of use is at row 59 - otherwise adjust these numbers accordingly)
B51: 7.1 Tables in blue boxes are recommended as print-outs for reports and presentations.
B52: 7.2 Users can export charts on the 'Output Charts' tab by using the Excel 'save as' function for PNG or PDF. Progress charts should be generated for each energy analysis iteration and/or project gateway.
B53: 7.3 To paste main table before and after into Word: hit "Revert Changes".. Select A8:M73 edit-copy.. then In Word.. edit.. paste-special.. picture.. reformat picture.
B54: 7.4 ...or can also do as above but paste-special.. Excel object.. reformat object. This is smaller file size for large tables but you may need to double click if re-loading the Word doc and the table is fuzzed-out
B55: 7.5 Hit "Apply Changes" Select A8:M73 and carry on as 7.1 above. This will include the Changes and Measures tables, but you could do them on a separate third page if running out of room.
B56: 7.6 ...or you can select print area as above and print, or print as pdf - this is very compact if you can use a pdf directly.

Sheet Notes on sub-metering problems
O3: Resolved Y/N
O8: No
O11: Yes
O14: No
O17: No
O20: No
O23: No
O26: No
O29: No
O32: No
O35: No
O40: No
J46: Print report to contractor for resolution

Sheet Example building details
C2: Exemplar school details
J5: The example building is a single-storey primary school of approximately 1000 m2. The floor plan of the school that inspired the hypothetical energy model is shown left. The data entry on the 'Energy Input Sheet' lists the major loads typically found in such schools. Note that the model assumes correct operation with no wasteful running. The notional school has the following features: - 7 x 60 m2 classrooms (420 m2 total) - 300 m2 of corridors, circulation, entrance, foyer, wcs, support - 1 x 150 m2 assembly/sports hall - 1 x 45 m2 catering kitchen - 130 m2 of staff rooms, offices, reception The school is occupied for 5.8 days a week and 40 weeks a year. Heating runs for 26 weeks. The seven design/use changes to the school, reflected in the highlighted cells and summarised in the 'tracked changes table' have been chosen to include: - a simple lamp replacement - an area-based change for classroom lighting (from 11.5 to 8.1 W/m2) - classroom IT upgrade and associated hub change - an example where three entries are changed at once (lighting load factors) - an increase in weekend use (from 5.4 to 5.8 days a week)
